Cogmind - Beta 17 @@@ ROGUE MODE // 2026.07.13 @ 20:08:06 Player: kite Result: Destroyed by D-53 Grenadier with Mini Grenade Launcher Performance ------------- Evolutions (0) 0 Regions Visited (2) 400 Robots Destroyed (20) 100 Value Destroyed (505) 505 Prototype IDs (1) 20 Alien Tech Used (0) 0 Bonus (0) 0 TOTAL SCORE: 1025 Bonus ------- None Cogmind --------- Core Integrity 0/250 Matter 199/300 Energy 60/100 System Corruption 0% Temperature Cool (0) Movement Treading (240) Ox1 Location -10/Mines Parts ------- > --- POWER (1) -------- (None) > --- PROPULSION (2) --- Light Treads > --- UTILITY (2) ------ Improved Heat Sink Large Storage Unit > --- WEAPON (2) ------- Improved EM Shotgun > --- INVENTORY (15) --- Ion Engine Light Treads Light Treads Heat Sink Improved Terrain Scanner ECM Suite Light Armor Plating Light Armor Plating EM Pulse Gun Improved EM Shotgun Assault Rifle Assault Rifle Grenade Launcher Grenade Launcher Grenade Launcher Peak State ------------ > --- POWER ------------ Ion Engine > --- PROPULSION ------- Light Treads Light Treads > --- UTILITY ---------- Improved Heat Sink Large Storage Unit > --- WEAPON ----------- Improved EM Shotgun Improved EM Shotgun > --- INVENTORY -------- Ion Engine Light Treads Aluminum Leg Heat Sink Improved Terrain Scanner ECM Suite EM Pulse Gun Improved EM Shotgun Improved EM Shotgun Small Laser Assault Rifle Assault Rifle Grenade Launcher Grenade Launcher Grenade Launcher [Rating: 15] Favorites ----------- Power Ion Engine Engine Ion Engine Propulsion Light Treads Treads Light Treads Utility Small Storage Unit Device Improved Heat Sink Storage Small Storage Unit Protection Propulsion Shielding Weapon Assault Rifle Energy Gun Improved EM Shotgun Ballistic Gun Assault Rifle Launcher Grenade Launcher Build | -11 -10 -10 ------- Run | Yrd Mat Min Slots Evolved . | . . . Power . | . . . Propulsion . | . . . Utility . | . . . Weapon . | . . . Parts Attached 19 | 6 11 2 Power 2 | 1 1 . Engine 2 | 1 1 . Core . | . . . Reactor . | . . . Propulsion 2 | 2 . . Treads 2 | 2 . . Leg . | . . . Wheel . | . . . Hover . | . . . Flight . | . . . Utility 6 | 1 5 . Device 3 | . 3 . Storage 2 | 1 1 . Processor . | . . . Hackware . | . . . Protection 1 | . 1 . Artifact . | . . . Weapon 9 | 2 5 2 Energy Gun 5 | . 5 . Energy Cannon . | . . . Ballistic Gun 2 | 2 . . Ballistic Cannon . | . . . Launcher 2 | . . 2 Special Weapon . | . . . Impact Weapon . | . . . Slashing Weapon . | . . . Piercing Weapon . | . . . Special Melee Weapon . | . . . Unidentified Prototypes 1 | . 1 . Parts Lost 4 | . 1 3 Power 1 | . . 1 Propulsion 1 | . . 1 Utility . | . . . Weapon 2 | . 1 1 Highest Loss Streak 3 | . 1 3 To Critical Strikes . | . . . Average Backups 9 | 3 9 15 Power . | . 1 1 Propulsion 2 | 1 2 2 Utility 2 | . 2 5 Weapon 3 | . 3 7 Tool/Special . | . . . Unused Backups 15 | . 4 11 Power 1 | . . 1 Propulsion 4 | . 3 1 Utility 4 | . . 4 Weapon 6 | . 1 5 Tool/Special . | . . . Average Slot Usage (%) 97 | . 97 100 Engine 14 | . 14 14 Treads 28 | . 28 28 Device 11 | . 10 14 Storage 14 | . 14 14 Energy Gun 17 | . 15 24 Ballistic Gun 10 | . 12 . Peak Build Rating 15 | 6 15 14 Average Rating 9 | 5 9 13 On Entrance 6 | . 6 14 Avg Prop Armor Cover (%) . | . . . Naked Turns . | . . . Heaviest Build 32 | 14 32 32 Greatest Support 40 | 40 40 40 Greatest Overweight (x) . | . . . Average Overweight (x) . | . . . Largest Inventory Capacity 15 | 8 15 15 Average Capacity 10 | 7 10 15 Most Carried 15 | 6 15 15 Average Carried 9 | 3 9 15 Final Capacity 15 | 8 15 15 Final Carried 15 | 6 15 15 Class Distribution -------------------- 100% | Mutant Dominant Class ---------------- Mutant | -10/Materials Mutant | -10/Mines Resources | -11 -10 -10 ----------- Run | Yrd Mat Min Matter Collected 632 | 137 471 24 Remotely . | . . . Salvage Created 838 | 45 738 55 Parts 48 | 5 43 . Haulers Intercepted 1 | . 1 . Recyclers Shooed 5 | 2 3 . Parts Field Recycled . | . . . Retrieved Matter . | . . . Parts Self-Destructed . | . . . Prevented . | . . . Parts Restored . | . . . Kills | -11 -10 -10 ------- Run | Yrd Mat Min Combat Hostiles Destroyed 23 | . 11 12 Guns 11 | . 11 . AOE 12 | . . 12 Classes Destroyed 8 | 1 6 1 Builder 1 | . 1 . Tunneler 3 | 2 1 . Hauler 1 | . 1 . Recycler 1 | . 1 . Mechanic 1 | . 1 . Watcher 2 | . 2 . Grunt 11 | . 11 . Assembled 12 | . . 12 Best Kill Streak 12 | 1 4 12 Combat Bots Only 12 | . 3 12 Max Kills in Single Turn 6 | 1 1 6 Gunslinging . | . . . Exploded 6 | . . 6 Melee . | . . . Uniques/NPCs Destroyed . | . . . Combat | -11 -10 -10 -------- Run | Yrd Mat Min Hostile Shots Fired 82 | . 44 38 Missed 30 | . 19 11 Hits 52 | . 25 27 Projectile 52 | . 25 27 AOE 13 | . . 13 Damage Taken 1033 | . 340 693 Core 288 | . 37 251 Absorbed by Shields . | . . . Core Remaining (%) 100 | 100 . . Volleys Fired 77 | 10 51 16 Largest 2 | 2 2 2 Hottest 115 | 40 115 90 Shots Fired 150 | 20 101 29 Gun 140 | 20 101 19 Cannon . | . . . Launcher 10 | . . 10 Special . | . . . Kinetic 82 | 20 62 . Thermal 23 | . 23 . Explosive 10 | . . 10 Electromagnetic 35 | . 16 19 Robot Hit Streak 10 | 6 10 6 Robot Miss Streak 5 | 3 5 3 Penetration Max . | . . . Secondary Targets . | . . . Shots Hit Robots 101 | 11 69 21 Core Hits 69 | 2 35 32 Critical Kills . | . . . Critical Parts Destroyed . | . . . Critical Strikes . | . . . Melee Attacks . | . . . Impact . | . . . Slashing . | . . . Piercing . | . . . Sneak Attacks . | . . . Combat Hostiles . | . . . Follow-up Attacks . | . . . Damage Inflicted 2022 | 144 902 976 Guns 1279 | 144 900 235 Cannons . | . . . Explosions 741 | . . 741 Melee . | . . . Ramming 2 | . 2 . Kinetic 655 | 144 511 . Thermal 224 | . 224 . Explosive 741 | . . 741 Electromagnetic 400 | . 165 235 Impact . | . . . Slashing . | . . . Piercing . | . . . Highest Corruption . | . . . Average Corruption . | . . . Corruption Purged . | . . . Corruption Blocked . | . . . Overload Shots . | . . . Overflow Damage . | . . . Projectiles . | . . . Explosions . | . . . Melee . | . . . Knockbacks . | . . . Impact . | . . . Kinetic . | . . . Secondary . | . . . Self-Inflicted Damage 21 | . . 21 Shots 1 | . . 1 Rammed 1 | . 1 . Targets Rammed 1 | . 1 . Kicked . | . . . Crushed . | . . . Highest Temperature 111 | . 111 . Average Temperature 25 | . 25 . Received Heat Transfer 192 | . 192 . Siege Activations . | . . . Martial Activations . | . . . Shielding Activations . | . . . Robots Disrupted . | . . . Combat Hostiles . | . . . Robots Corrupted . | . . . Combat Hostiles . | . . . Parts Fried 1 | . 1 . Impact Corruptions . | . . . Robots Melted . | . . . Combat Hostiles . | . . . Parts Melted 3 | . 3 . Heat Transferred 581 | . 581 . Parts Sabotaged . | . . . Parts Stolen . | . . . Parts Stripped . | . . . Power Chain Reactions . | . . . Alert | -11 -10 -10 ------- Run | Yrd Mat Min Maximum Alert Level . | . . . Low Security (%) 100 | 100 100 100 Level 1 . | . . . Level 2 . | . . . Level 3 . | . . . Level 4 . | . . . Level 5 . | . . . High Security . | . . . Max Security . | . . . Peak Influence 67 | 5 67 29 Initial 18 | . . 18 Average 15 | . 19 9 Influence Increases 384 | 10 335 39 Destroy 0b10 Robot/C 220 | . 220 . Destroy 0b10 Robot/NC 45 | 10 35 . Destroy Leader 56 | . 56 . Successful Hack 7 | . 7 . Destroy Structure 41 | . 2 39 Lose Combat Pursuer 15 | . 15 . Influence Decreases 384 | 10 286 88 Entered New Map 31 | . . 31 Time Decay 334 | 10 285 39 Lost Part 1 | . 1 . Lost Ally 18 | . . 18 Squads Dispatched 1 | . 1 . Investigation 1 | . 1 . Extermination . | . . . Reinforcement . | . . . Assault . | . . . Garrison . | . . . Intercept . | . . . Searches Triggered . | . . . Construction Impeded . | . . . Haulers Reinforced . | . . . Active Scanning Responses . | . . . Cargo Convoy Interrupts . | . . . Stealth | -11 -10 -10 --------- Run | Yrd Mat Min Distress Signals 1 | . 1 . Communications Jammed . | . . . Distress Signals . | . . . Times Spotted 40 | . 20 20 Peak Tracking Total 15 | . 4 15 Tactical Retreats 4 | . 1 3 Traps | -11 -10 -10 ------- Run | Yrd Mat Min Traps Triggered 1 | . 1 . Indirectly . | . . . Trap Hack Attempts . | . . . Triggered . | . . . Disarmed . | . . . Reprogrammed . | . . . Reused . | . . . Traps Extracted . | . . . Installed . | . . . Triggered . | . . . Machines | -11 -10 -10 ---------- Run | Yrd Mat Min Machines Disabled . | . . . Max in Single Turn . | . . . Machines Repaired . | . . . Machines Dismantled . | . . . Machines Sabotaged . | . . . Overloaded Fab Kills . | . . . Hacking | -11 -10 -10 --------- Run | Yrd Mat Min Machines Accessed 2 | . 2 . Terminals 2 | . 2 . Fabricators . | . . . Repair Stations . | . . . Recycling Units . | . . . Scanalyzers . | . . . Garrison Access . | . . . Total Hacks 6 | . 6 . Successful 2 | . 2 . Failed 4 | . 4 . Catastrophic . | . . . Database Lockouts . | . . . Manual 6 | . 6 . Terminals 6 | . 6 . Fabricators . | . . . Repair Stations . | . . . Recycling Units . | . . . Scanalyzers . | . . . Garrison Access . | . . . Terminal Hacks 1 | . 1 . Part Schematic 1 | . 1 . Fabricator Hacks . | . . . Repair Station Hacks . | . . . Recycling Unit Hacks . | . . . Scanalyzer . | . . . Garrison Access Hacks . | . . . Unauthorized Hacks 1 | . 1 . Terminals 1 | . 1 . Botnet 1 | . 1 . Fabricators . | . . . Repair Stations . | . . . Recycling Units . | . . . Scanalyzers . | . . . Garrison Access . | . . . Data Cores Recovered . | . . . Used . | . . . Hacking Detections 2 | . 2 . Full Trace Events . | . . . Feedback Events . | . . . Feedback Blocked . | . . . Robot Schematics Acquired . | . . . Robots Built . | . . . Authchips . | . . . Time . | . . . Total Robot Build Rating . | . . . Part Schematics Acquired 1 | . 1 . Parts Built . | . . . Authchips . | . . . Time . | . . . Total Part Build Rating . | . . . Part Studies Acquired . | . . . Parts Repaired . | . . . Time . | . . . Parts Recycled . | . . . Recycled Matter . | . . . Retrieved Matter . | . . . Retrieved Components . | . . . Parts Scanalyzed . | . . . Part Schematics Acquired . | . . . Parts Damaged . | . . . Bothacking | -11 -10 -10 ------------ Run | Yrd Mat Min Used RIF Installer . | . . . Robots Hacked . | . . . Non-combat . | . . . Combat . | . . . Robot Hacks Applied . | . . . Relay Couplers Released . | . . . Fabnet Peak Effective % . | . . . Robots Rewired . | . . . Allies Hacked . | . . . Hacks Repelled . | . . . Allies | -11 -10 -10 -------- Run | Yrd Mat Min Total Allies 1 | . . 1 Largest Group 1 | . . 1 Highest-Rated Group 31 | . . 31 Highest-Rated Ally 31 | . . 31 Total Orders . | . . . Ally Attacks 3 | . . 3 Total Damage 40 | . . 40 Kills . | . . . Allies Corrupted . | . . . Allies Melted . | . . . Intel | -11 -10 -10 ------- Run | Yrd Mat Min Active Infowar (turns) 219 | . 219 . Seismic 219 | . 219 . Robot Analysis Total . | . . . Derelict Logs Recovered . | . . . Drone Launches . | . . . Drone Recoveries . | . . . Exploration | -11 -10 -10 ------------- Run | Yrd Mat Min Turns Passed 1315 | 168 1002 145 Spaces Moved 601 | 79 468 54 Core 3 | 3 . . Treads 598 | 76 468 54 Legs . | . . . Wheels . | . . . Hover . | . . . Flight . | . . . Fastest Speed 50 | 50 160 160 Average Speed 159 | 155 160 160 Slowest Speed 160 | 160 160 160 Overloaded Moves . | . . . Propulsion Burnouts . | . . . Robots Hopped . | . . . Potential Cave-ins . | . . . Cave-ins Triggered . | . . . Exploration Rate (%) 29 | 4 70 14 Regions Visited 2 Branch Regions 1 Pre-discovered Areas . | . . . Known Exits Taken . | . . . Unknown Exits Taken 2 | 1 1 . Scrap Searched . | . . . Spaces Dug . | . . . Terrain Destroyed 44 | . . 44 Melee . | . . . Projectile . | . . . AOE 44 | . . 44 Terrain Rammed . | . . . Walls Destroyed . | . . . Machines Disabled . | . . . Actions | -11 -10 -10 --------- Run | Yrd Mat Min Total 806 | 101 623 82 Wait 73 | 1 64 8 Move 599 | 78 467 54 Hop . | . . . Pick Up 22 | 6 16 . Fast Attach 9 | 6 3 . Attach 3 | . 3 . Detach 1 | . 1 . Swap 9 | . 5 4 Drop 12 | . 12 . Fire 77 | 10 51 16 Melee . | . . . Ram . | . . . Kick . | . . . Crush 1 | . 1 . Escape Stasis . | . . . Rewire . | . . . Trap . | . . . Miscellaneous . | . . . Route ------- -11/Scrapyard -10/Materials (discovered 4 exits: [*Mat x2] / [*Min] / [*Sub]) -10/Mines History --------- Turn | Location | Event 17 | -11/Scrapyard | Discovered new exit (range 16) 169 | -11/Scrapyard | Entered Materials 303 | -10/Materials | Build established: Mutant 419 | -10/Materials | Discovered new exit (range 15) 897 | -10/Materials | Discovered new exit (range 16) 928 | -10/Materials | Discovered new exit (range 9) 1110 | -10/Materials | Discovered new exit (range 10) 1171 | -10/Materials | Entered Mines 1172 | -10/Mines | Assembled infested the area 1174 | -10/Mines | Received a Mining Laser from a helpful Derelict 1178 | -10/Mines | Assisted by a Guerilla fighting off Assembled 1239 | -10/Mines | Destroyed 12 combat bots 1302 | -10/Mines | Core integrity fell below 50% 1308 | -10/Mines | Core integrity fell below 20% 1316 | -10/Mines | Destroyed by D-53 Grenadier with Mini Grenade Launcher Last Messages --------------- 01209_ as-09501 destroyed. 01209_ as-19422 destroyed. 01212_ as-05657 destroyed. 01215_ as-31524 destroyed. 01218_ as-46401 destroyed. 01221_ The unstable cave ceiling collapses. 01238_ Acquired 24 matter. 01253_ The unstable cave ceiling collapses. 01303_ D-53 Grenadier misfires. 01309_ D-53 Grenadier IFF system glitched. 01309_ R-06 Scavenger destroyed. 01310_ The unstable cave ceiling collapses. 01310_ Imp. EM Shotgun destroyed. 01310_ Ion Engine destroyed. 01311_ The unstable cave ceiling collapses. 01311_ Lgt. Treads destroyed. 01314_ The unstable cave ceiling collapses. 01314_ D-53 Grenadier IFF system glitched. 01314_ D-53 Grenadier destroyed. 01315_ The unstable cave ceiling collapses. Map ----- +----------------------------------------------------+ | | | | | | | | | | | | | | | | | | | ???????????????????????????????????????????????? | | ????????????????????????????????##?????????????? | | ???????????????????????????????## ##???????????? | | ???????????????????????????????# ##???#####??? | | ???????????????????????????????# #???# ##?? | | ????????????????????????????????# #???# #?? | | ?????????????????????????????#### ##??## #?? | | ?????????????????????????????# # #?## #?? | | ?????????????????????????????## ### #?? | | ??????????????????????????#### #?? | | ??????????????????????????# #?? | | ??????????????????????###### # ##?? | | ?????????????????????## # # # ##??? | | ????????????????????## ### # ##???? | | ????????????????????# #[ #????? | | ????????????????????# # # # #????? | | ????????????????????# @ # ##????? | | ????????????????????# < #?????? | | ????????????????? # # #?????? | | ???????????????# ### # # ##?????? | | ???????????????# ! #?### ######??????? | | ?????????????? =% % #???# #???????????? | | ???????????? #d ##???# #???????????? | | ????????????# """ ## #% #????# ???????????? | | ?????????????# """ ?## # ????###???????????? | | ????????????????""???? # # ??????????????????? | | ???????????????? ????? % ??????????????????? | | ????????????????????? # # ?????????????????? | | ????????????????????? # ? ? ?????????????????? | | ????????????????????? #? ? ? ?????????????????? | | ?????????????????????#??#?# ? ?????????????????? | | ??????????????????????????? ???????????????????? | | ???????????????????????????????????????????????? | | ???????????????????????????????????????????????? | | ???????????????????????????????????????????????? | | ???????????????????????????????????????????????? | | ???????????????????????????????????????????????? | | ???????????????????????????????????????????????? | | ???????????????????????????????????????????????? | | ???????????????????????????????????????????????? | | ???????????????????????????????????????????????? | +----------------------------------------------------+ Best States ------------- Heat Dissipation 39 Energy Generation 10 Energy Capacity 250 Matter Stores 300 Matter Capacity 300 Sight Range 16 Terrain Scan Density 10 Propulsion Shielding 33 Evasion (%) 40 Recoil Reduction 2 Item Schematics ----------------- Hcp. Storage Unit | -10/Materials | Hacked Robot Schematics ------------------ None Fabricated ------------ Nothing Repaired ---------- Nothing Studied --------- None Alien Tech Used ----------------- None Achievements -------------- None Challenges ------------ None Game ------ Seed ArcsightFusionMicroactuators Manual? 0 Play Time 00:08:51 Cumulative 442.1 hours Start 2026.07.13 @ 19:37:47 End 2026.07.13 @ 20:08:06 Sessions 1 Manual Loads 0 Difficulty Rogue Special Mode None Game No. 407 Rogue 407 Adventurer 0 Explorer 0 Win Type - Total 11 Types 7/0/2/1/0/0/0/0/0/1 Lore% 61 Gallery% 69 Achievement% 64 Wizard Run 0 Options --------- Layout 1 ASCII 0 Keyboard 0 Movement Mouse Keybinds 0 Fullscreen 2 Font 24/Cog Map View 50x35 Zoom Use 59% Tactical HUD 1 Map Filters NONE Filters NONE Steam 1 RUN: e6dcdc6e-08b2-4e61-ad21-5e9dde6fe94e